[Event "Early-Titled-Tuesday-Blitz-April-16-2024"]
[Site "Chess.com"]
[Date "2024.04.16"]
[Round "3"]
[White "szefru"]
[Black "Vasily_IM"]
[Result "0-1"]
[WhiteElo "2286"]
[BlackElo "2565"]
[TimeControl "180+1"]
[EndTime "8:30:28 PDT"]
[Termination "Vasily_IM won by resignation"]

1. e4 {[%clk 0:02:56.8]} 1... c5 {[%clk 0:02:52.8]} 2. Nf3 {[%clk 0:02:52.7]}
2... e6 {[%clk 0:02:52.5]} 3. b3 {[%clk 0:02:51.7]} 3... d5 {[%clk 0:02:52.2]}
4. exd5 {[%clk 0:02:39.2]} 4... exd5 {[%clk 0:02:51.9]} 5. Bb5+ {[%clk
0:02:39.7]} 5... Bd7 {[%clk 0:02:51]} 6. Bxd7+ {[%clk 0:02:34]} 6... Qxd7 {[%clk
0:02:50.6]} 7. O-O {[%clk 0:02:34.6]} 7... Nf6 {[%clk 0:02:49.8]} 8. Re1+ {[%clk
0:02:34.8]} 8... Be7 {[%clk 0:02:49.6]} 9. Qe2 {[%clk 0:02:33.3]} 9... Nc6
{[%clk 0:02:48.8]} 10. Bb2 {[%clk 0:02:22.8]} 10... O-O {[%clk 0:02:47.5]} 11.
d4 {[%clk 0:02:17.2]} 11... Rfe8 {[%clk 0:02:43.5]} 12. Nbd2 {[%clk 0:02:08.3]}
12... cxd4 {[%clk 0:02:35]} 13. Ne5 {[%clk 0:01:17.7]} 13... Nxe5 {[%clk
0:02:23.2]} 14. Qxe5 {[%clk 0:01:18.6]} 14... Bc5 {[%clk 0:02:12]} 15. Qf4
{[%clk 0:01:14.9]} 15... Rac8 {[%clk 0:01:36.8]} 16. Nf3 {[%clk 0:01:10.3]}
16... Re4 {[%clk 0:01:34.4]} 17. Qd2 {[%clk 0:01:01.3]} 17... Qc6 {[%clk
0:01:09.4]} 18. Rac1 {[%clk 0:00:30.8]} 18... Qb6 {[%clk 0:01:05.3]} 19. a3
{[%clk 0:00:29.3]} 19... Rce8 {[%clk 0:01:00.7]} 20. b4 {[%clk 0:00:29]} 20...
Be7 {[%clk 0:00:46.8]} 21. Bxd4 {[%clk 0:00:29.1]} 21... Qc6 {[%clk 0:00:44]}
22. Ne5 {[%clk 0:00:28.7]} 22... Qa4 {[%clk 0:00:38]} 23. Bb2 {[%clk 0:00:22.5]}
23... a6 {[%clk 0:00:32.8]} 24. Nf3 {[%clk 0:00:16]} 24... a5 {[%clk 0:00:31.1]}
25. c3 {[%clk 0:00:14.3]} 25... Qb3 {[%clk 0:00:30.1]} 26. Rb1 {[%clk
0:00:12.5]} 26... Qc4 {[%clk 0:00:29.8]} 27. Ne5 {[%clk 0:00:12.1]} 27... Qc7
{[%clk 0:00:28.8]} 28. Nd3 {[%clk 0:00:12.4]} 28... Bd6 {[%clk 0:00:27.8]} 29.
g3 {[%clk 0:00:12]} 29... Rxe1+ {[%clk 0:00:26]} 30. Rxe1 {[%clk 0:00:12.9]}
30... Ne4 {[%clk 0:00:26.4]} 31. Qc2 {[%clk 0:00:11.5]} 31... Rc8 {[%clk
0:00:26.4]} 32. Qb3 {[%clk 0:00:11.1]} 32... axb4 {[%clk 0:00:25.2]} 33. cxb4
{[%clk 0:00:10.8]} 33... Qc4 {[%clk 0:00:24.7]} 34. Qxc4 {[%clk 0:00:07.7]}
34... Rxc4 {[%clk 0:00:23.4]} 35. Rc1 {[%clk 0:00:08.1]} 35... Kf8 {[%clk
0:00:22.2]} 36. f3 {[%clk 0:00:03.6]} 36... Nd2 {[%clk 0:00:20.9]} 37. Kf2
{[%clk 0:00:04.2]} 37... Nb3 {[%clk 0:00:20.9]} 38. Rxc4 {[%clk 0:00:03.7]}
38... dxc4 {[%clk 0:00:20.9]} 39. Ne5 {[%clk 0:00:03.8]} 39... b5 {[%clk
0:00:20.9]} 40. Nc6 {[%clk 0:00:03]} 40... Ke8 {[%clk 0:00:20]} 41. Nd4 {[%clk
0:00:01.8]} 41... Nxd4 {[%clk 0:00:19.8]} 42. Bxd4 {[%clk 0:00:02.7]} 42... g6
{[%clk 0:00:19.8]} 43. Ke3 {[%clk 0:00:03.3]} 43... Kd7 {[%clk 0:00:20.3]} 44.
Kd2 {[%clk 0:00:03.9]} 44... Ke6 {[%clk 0:00:20.5]} 45. Kc3 {[%clk 0:00:04.5]}
45... Kd5 {[%clk 0:00:21.1]} 46. f4 {[%clk 0:00:03.7]} 46... h5 {[%clk
0:00:20.2]} 47. Be3 {[%clk 0:00:02.8]} 47... h4 {[%clk 0:00:19.2]} 48. Bd4
{[%clk 0:00:03.2]} 48... h3 {[%clk 0:00:18.8]} 49. Bf6 {[%clk 0:00:02.8]} 49...
Ke4 {[%clk 0:00:17.4]} 50. a4 {[%clk 0:00:02]} 50... bxa4 {[%clk 0:00:17]} 51.
Kxc4 {[%clk 0:00:02.9]} 51... Kf3 {[%clk 0:00:17.2]} 52. b5 {[%clk 0:00:02.1]}
52... Kg2 {[%clk 0:00:16.7]} 53. Be5 {[%clk 0:00:02.5]} 53... Bxe5 {[%clk
0:00:13.1]} 54. fxe5 {[%clk 0:00:03.4]} 54... Kxh2 {[%clk 0:00:13.9]} 55. b6
{[%clk 0:00:04.3]} 55... Kg2 {[%clk 0:00:13.6]} 56. b7 {[%clk 0:00:05]} 56... h2
{[%clk 0:00:14.5]} 57. b8=Q {[%clk 0:00:05.4]} 57... h1=Q {[%clk 0:00:15.4]} 58.
Qb7+ {[%clk 0:00:05.7]} 58... Kg1 {[%clk 0:00:15.2]} 59. Qb6+ {[%clk 0:00:05.8]}
59... Kh2 {[%clk 0:00:14.9]} 60. Qf6 {[%clk 0:00:05.2]} 60... Qe4+ {[%clk
0:00:13]} 61. Kb5 {[%clk 0:00:04.8]} 61... Qd5+ {[%clk 0:00:12.8]} 62. Kxa4
{[%clk 0:00:05.1]} 62... Kxg3 {[%clk 0:00:13.3]} 63. Kb4 {[%clk 0:00:04.2]}
63... Qe6 {[%clk 0:00:12.8]} 64. Qg7 {[%clk 0:00:02.7]} 64... Kf4 {[%clk
0:00:11.7]} 65. Qh6+ {[%clk 0:00:02.5]} 65... Kxe5 {[%clk 0:00:11.5]} 66. Qe3+
{[%clk 0:00:03.2]} 66... Kf6 {[%clk 0:00:11.4]} 67. Qf4+ {[%clk 0:00:03.5]}
67... Qf5 {[%clk 0:00:11.6]} 68. Qd6+ {[%clk 0:00:04]} 68... Kg5 {[%clk
0:00:12]} 69. Qe7+ {[%clk 0:00:03.3]} 69... Kg4 {[%clk 0:00:12.1]} 70. Kc3
{[%clk 0:00:02.8]} 70... Qf3+ {[%clk 0:00:10.8]} 71. Kd4 {[%clk 0:00:02.3]}
71... Qf4+ {[%clk 0:00:11.7]} 72. Kd3 {[%clk 0:00:02.7]} 72... g5 {[%clk
0:00:11.9]} 73. Qe2+ {[%clk 0:00:02.5]} 73... Qf3+ {[%clk 0:00:12]} 74. Qxf3+
{[%clk 0:00:03.1]} 74... Kxf3 {[%clk 0:00:12.9]} 0-1

[Event "Early-Titled-Tuesday-Blitz-April-16-2024"]
[Site "Chess.com"]
[Date "2024.04.16"]
[Round "3"]
[White "manitodeplomo"]
[Black "LastHeroJr"]
[Result "1/2-1/2"]
[WhiteElo "2643"]
[BlackElo "2485"]
[TimeControl "180+1"]
[EndTime "8:30:44 PDT"]
[Termination "Game drawn by repetition"]

1. d4 {[%clk 0:02:57.2]} 1... d5 {[%clk 0:02:13.8]} 2. c4 {[%clk 0:02:55.8]}
2... c6 {[%clk 0:02:13.5]} 3. Nf3 {[%clk 0:02:55.8]} 3... Nf6 {[%clk 0:02:13.6]}
4. Qb3 {[%clk 0:02:50.7]} 4... Qb6 {[%clk 0:02:13.2]} 5. c5 {[%clk 0:02:47.7]}
5... Qc7 {[%clk 0:02:13.5]} 6. g3 {[%clk 0:02:45.7]} 6... Nbd7 {[%clk
0:02:08.9]} 7. Bf4 {[%clk 0:02:45.8]} 7... Qa5+ {[%clk 0:02:08.9]} 8. Nc3 {[%clk
0:02:41.6]} 8... Ne4 {[%clk 0:02:08.4]} 9. Bg2 {[%clk 0:02:36.5]} 9... b5 {[%clk
0:02:07.1]} 10. O-O {[%clk 0:02:33.3]} 10... f5 {[%clk 0:02:05.1]} 11. a4 {[%clk
0:02:14.4]} 11... b4 {[%clk 0:02:03]} 12. Nxe4 {[%clk 0:02:11.6]} 12... fxe4
{[%clk 0:02:01.3]} 13. Ne1 {[%clk 0:02:08.9]} 13... Ba6 {[%clk 0:02:00.7]} 14.
Nc2 {[%clk 0:02:02.4]} 14... Bxe2 {[%clk 0:01:58.5]} 15. Rfe1 {[%clk 0:01:59.4]}
15... Bc4 {[%clk 0:01:58.6]} 16. Qxb4 {[%clk 0:01:59.2]} 16... Qxb4 {[%clk
0:01:58.7]} 17. Nxb4 {[%clk 0:01:59.5]} 17... Rc8 {[%clk 0:01:55.9]} 18. Rec1
{[%clk 0:01:52.1]} 18... e5 {[%clk 0:01:55.5]} 19. Be3 {[%clk 0:01:48.6]} 19...
exd4 {[%clk 0:01:55]} 20. Bxd4 {[%clk 0:01:49.5]} 20... Bxc5 {[%clk 0:01:54]}
21. Bxg7 {[%clk 0:01:44.6]} 21... Rg8 {[%clk 0:01:53.2]} 22. Bc3 {[%clk
0:01:44.6]} 22... Rf8 {[%clk 0:01:52.5]} 23. Be1 {[%clk 0:01:43.9]} 23... Ne5
{[%clk 0:01:33.3]} 24. b3 {[%clk 0:01:25.4]} 24... Bxb4 {[%clk 0:01:23.7]} 25.
bxc4 {[%clk 0:01:25]} 25... Bxe1 {[%clk 0:01:21.7]} 26. Rxe1 {[%clk 0:01:21]}
26... Nd3 {[%clk 0:01:19.6]} 27. Re2 {[%clk 0:01:10]} 27... Kf7 {[%clk
0:01:17.6]} 28. cxd5 {[%clk 0:01:01.6]} 28... cxd5 {[%clk 0:01:17.5]} 29. f3
{[%clk 0:01:02.1]} 29... Nc1 {[%clk 0:01:14.1]} 30. Re1 {[%clk 0:00:51.8]} 30...
Nd3 {[%clk 0:01:13.5]} 31. Re3 {[%clk 0:00:50.6]} 31... Kg7 {[%clk 0:01:07.5]}
32. fxe4 {[%clk 0:00:49.7]} 32... dxe4 {[%clk 0:01:07.4]} 33. Bxe4 {[%clk
0:00:48.5]} 33... Nc5 {[%clk 0:01:06.1]} 34. Bc2 {[%clk 0:00:43.8]} 34... Rc7
{[%clk 0:01:05.9]} 35. Rae1 {[%clk 0:00:42.4]} 35... Rff7 {[%clk 0:01:04.5]} 36.
h4 {[%clk 0:00:41.1]} 36... Kh6 {[%clk 0:00:58.8]} 37. g4 {[%clk 0:00:38.1]}
37... Rf4 {[%clk 0:00:58.8]} 38. Rg3 {[%clk 0:00:26.1]} 38... Nxa4 {[%clk
0:00:55.6]} 39. Re6+ {[%clk 0:00:19.3]} 39... Kg7 {[%clk 0:00:54.9]} 40. Bxa4
{[%clk 0:00:16.4]} 40... Rxa4 {[%clk 0:00:54.4]} 41. Kg2 {[%clk 0:00:16.8]}
41... Ra2+ {[%clk 0:00:53.6]} 42. Kh3 {[%clk 0:00:16.8]} 42... Ra1 {[%clk
0:00:46.1]} 43. g5 {[%clk 0:00:11.6]} 43... Rh1+ {[%clk 0:00:45.1]} 44. Kg4
{[%clk 0:00:10]} 44... Rc4+ {[%clk 0:00:45.2]} 45. Kf5 {[%clk 0:00:10.1]} 45...
Rf1+ {[%clk 0:00:42.1]} 46. Ke5 {[%clk 0:00:08.6]} 46... Re1+ {[%clk 0:00:40.1]}
47. Kd6 {[%clk 0:00:08.6]} 47... Rd4+ {[%clk 0:00:36.4]} 48. Ke7 {[%clk
0:00:07.5]} 48... Rxe6+ {[%clk 0:00:36.2]} 49. Kxe6 {[%clk 0:00:08.4]} 49...
Rxh4 {[%clk 0:00:36.6]} 50. Kf5 {[%clk 0:00:07.1]} 50... Rb4 {[%clk 0:00:31.5]}
51. Rc3 {[%clk 0:00:05.7]} 51... Rb5+ {[%clk 0:00:31.6]} 52. Kg4 {[%clk
0:00:05.9]} 52... a5 {[%clk 0:00:27.2]} 53. Rc7+ {[%clk 0:00:05.6]} 53... Kg8
{[%clk 0:00:27.6]} 54. Ra7 {[%clk 0:00:05.6]} 54... Rb4+ {[%clk 0:00:22.2]} 55.
Kf5 {[%clk 0:00:05.7]} 55... Rb5+ {[%clk 0:00:22.3]} 56. Kf6 {[%clk 0:00:05.6]}
56... Rb6+ {[%clk 0:00:22.6]} 57. Kf5 {[%clk 0:00:05.8]} 57... Rb5+ {[%clk
0:00:22.4]} 58. Kf6 {[%clk 0:00:06.1]} 58... Rb6+ {[%clk 0:00:22.5]} 59. Kf5
{[%clk 0:00:06.4]} 59... h5 {[%clk 0:00:20.5]} 60. gxh6 {[%clk 0:00:05]} 60...
Rxh6 {[%clk 0:00:19]} 61. Ke5 {[%clk 0:00:04.5]} 61... Kf8 {[%clk 0:00:17.8]}
62. Kd5 {[%clk 0:00:04.5]} 62... Rh5+ {[%clk 0:00:18.3]} 63. Kc4 {[%clk
0:00:04.5]} 63... Ke8 {[%clk 0:00:18.2]} 64. Kb3 {[%clk 0:00:04.5]} 64... Kd8
{[%clk 0:00:18.7]} 65. Ka4 {[%clk 0:00:05]} 65... Kc8 {[%clk 0:00:19.2]} 66.
Rxa5 {[%clk 0:00:05]} 66... Rh1 {[%clk 0:00:20.1]} 67. Rc5+ {[%clk 0:00:04.7]}
67... Kb7 {[%clk 0:00:20.5]} 68. Rg5 {[%clk 0:00:04.6]} 68... Kc6 {[%clk
0:00:20.8]} 69. Rg6+ {[%clk 0:00:04.2]} 69... Kd5 {[%clk 0:00:20.9]} 70. Rg5+
{[%clk 0:00:04.6]} 70... Kc4 {[%clk 0:00:21.2]} 71. Rg4+ {[%clk 0:00:04.9]}
71... Kc5 {[%clk 0:00:21.8]} 72. Rg5+ {[%clk 0:00:05.4]} 72... Kd4 {[%clk
0:00:22.5]} 73. Rg4+ {[%clk 0:00:05.7]} 73... Ke5 {[%clk 0:00:23.1]} 74. Rg5+
{[%clk 0:00:06]} 74... Ke6 {[%clk 0:00:22.9]} 75. Rb5 {[%clk 0:00:06.2]} 75...
Kd6 {[%clk 0:00:23.3]} 76. Rg5 {[%clk 0:00:05.5]} 76... Rh4+ {[%clk 0:00:22.8]}
77. Kb3 {[%clk 0:00:05.4]} 77... Rh1 {[%clk 0:00:23.5]} 78. Kc3 {[%clk
0:00:05.2]} 78... Ke6 {[%clk 0:00:23.8]} 79. Kd3 {[%clk 0:00:04.4]} 79... Rd1+
{[%clk 0:00:24.3]} 80. Ke2 {[%clk 0:00:04.1]} 80... Ra1 {[%clk 0:00:25.2]} 81.
Rg3 {[%clk 0:00:04.4]} 81... Ra2+ {[%clk 0:00:25.1]} 82. Kf1 {[%clk 0:00:03.6]}
82... Kf5 {[%clk 0:00:25.6]} 83. Rb3 {[%clk 0:00:03.8]} 83... Ke4 {[%clk
0:00:25.9]} 84. Rb8 {[%clk 0:00:03.1]} 84... Ra1+ {[%clk 0:00:25.8]} 85. Kg2
{[%clk 0:00:03.4]} 85... Ra7 {[%clk 0:00:26.5]} 86. Re8+ {[%clk 0:00:03]} 86...
Kf4 {[%clk 0:00:26.5]} 87. Rf8+ {[%clk 0:00:03.3]} 87... Kg4 {[%clk 0:00:26.4]}
88. Rg8+ {[%clk 0:00:03.7]} 88... Kf5 {[%clk 0:00:26.8]} 89. Rf8+ {[%clk
0:00:04.1]} 89... Ke6 {[%clk 0:00:27.3]} 90. Re8+ {[%clk 0:00:04.5]} 90... Kf5
{[%clk 0:00:26.8]} 91. Rf8+ {[%clk 0:00:04.9]} 91... Kg4 {[%clk 0:00:26.8]} 92.
Rg8+ {[%clk 0:00:05.3]} 92... Kf5 {[%clk 0:00:27.3]} 93. Rf8+ {[%clk 0:00:05.7]}
1/2-1/2

[Event "Early-Titled-Tuesday-Blitz-April-16-2024"]
[Site "Chess.com"]
[Date "2024.04.16"]
[Round "3"]
[White "MarcoRiehle"]
[Black "Salem-AR"]
[Result "1/2-1/2"]
[WhiteElo "2726"]
[BlackElo "3022"]
[TimeControl "180+1"]
[EndTime "8:30:52 PDT"]
[Termination "Game drawn by 50-move rule"]

1. e4 {[%clk 0:03:00.9]} 1... c5 {[%clk 0:02:55.7]} 2. a3 {[%clk 0:03:00.5]}
2... g6 {[%clk 0:02:54.5]} 3. h4 {[%clk 0:02:59.1]} 3... Bg7 {[%clk 0:02:51.2]}
4. h5 {[%clk 0:02:58]} 4... Nc6 {[%clk 0:02:51.8]} 5. Nc3 {[%clk 0:02:57]} 5...
d6 {[%clk 0:02:51.8]} 6. Bc4 {[%clk 0:02:55.5]} 6... e6 {[%clk 0:02:40.7]} 7. d3
{[%clk 0:02:51.5]} 7... Nge7 {[%clk 0:02:39.8]} 8. Nf3 {[%clk 0:02:48.7]} 8...
h6 {[%clk 0:02:38.7]} 9. hxg6 {[%clk 0:02:47.4]} 9... Nxg6 {[%clk 0:02:36.3]}
10. Be3 {[%clk 0:02:46]} 10... b6 {[%clk 0:02:31.9]} 11. Qd2 {[%clk 0:02:45.4]}
11... a6 {[%clk 0:02:12.9]} 12. O-O-O {[%clk 0:02:43.2]} 12... b5 {[%clk
0:02:12.8]} 13. Bb3 {[%clk 0:02:38.7]} 13... Nd4 {[%clk 0:02:06.8]} 14. Bxh6
{[%clk 0:02:32.1]} 14... Nxb3+ {[%clk 0:02:06.2]} 15. cxb3 {[%clk 0:02:32.1]}
15... Bxh6 {[%clk 0:01:25.3]} 16. Rxh6 {[%clk 0:02:33]} 16... Rxh6 {[%clk
0:01:25.5]} 17. Qxh6 {[%clk 0:02:29.3]} 17... Qf6 {[%clk 0:01:26.4]} 18. Qg5
{[%clk 0:02:20.8]} 18... Ke7 {[%clk 0:01:23.3]} 19. Qxf6+ {[%clk 0:02:15.2]}
19... Kxf6 {[%clk 0:01:24.2]} 20. d4 {[%clk 0:02:15.8]} 20... b4 {[%clk
0:01:17.6]} 21. e5+ {[%clk 0:02:09]} 21... dxe5 {[%clk 0:01:13.8]} 22. Ne4+
{[%clk 0:01:59]} 22... Kf5 {[%clk 0:01:11.4]} 23. Nd6+ {[%clk 0:01:58.7]} 23...
Kf4 {[%clk 0:01:08.9]} 24. dxe5 {[%clk 0:01:45.2]} 24... bxa3 {[%clk 0:01:02.3]}
25. bxa3 {[%clk 0:01:44.3]} 25... Rb8 {[%clk 0:01:03.1]} 26. Rd3 {[%clk
0:01:31.3]} 26... Bb7 {[%clk 0:01:02.4]} 27. Nxf7 {[%clk 0:01:23.9]} 27... Bd5
{[%clk 0:00:54.1]} 28. g3+ {[%clk 0:01:13.5]} 28... Kg4 {[%clk 0:00:54.1]} 29.
Nd2 {[%clk 0:01:14.1]} 29... Rf8 {[%clk 0:00:47.1]} 30. Nd6 {[%clk 0:01:03.1]}
30... Rxf2 {[%clk 0:00:46.4]} 31. N6e4 {[%clk 0:00:51.6]} 31... Bxe4 {[%clk
0:00:42.8]} 32. Nxe4 {[%clk 0:00:52.5]} 32... Re2 {[%clk 0:00:42.7]} 33. Nxc5
{[%clk 0:00:50.8]} 33... Nxe5 {[%clk 0:00:41.8]} 34. Rd6 {[%clk 0:00:49.3]}
34... Kf3 {[%clk 0:00:32.8]} 35. Rxa6 {[%clk 0:00:38.1]} 35... Re3 {[%clk
0:00:32.8]} 36. b4 {[%clk 0:00:34.6]} 36... Nc4 {[%clk 0:00:30]} 37. Rxe6 {[%clk
0:00:33.4]} 37... Rxa3 {[%clk 0:00:28.5]} 38. Kc2 {[%clk 0:00:33.5]} 38... Ne3+
{[%clk 0:00:25.5]} 39. Kb2 {[%clk 0:00:32.8]} 39... Nc4+ {[%clk 0:00:26.3]} 40.
Kc2 {[%clk 0:00:31.6]} 40... Ne3+ {[%clk 0:00:26.4]} 41. Kb1 {[%clk 0:00:26.6]}
41... Nd5 {[%clk 0:00:24.5]} 42. Kb2 {[%clk 0:00:25.3]} 42... Ra8 {[%clk
0:00:21.9]} 43. Kb3 {[%clk 0:00:24.9]} 43... Nxb4 {[%clk 0:00:20.5]} 44. Kxb4
{[%clk 0:00:23.8]} 44... Kxg3 {[%clk 0:00:21.1]} 45. Kc4 {[%clk 0:00:24.4]}
45... Rd8 {[%clk 0:00:20.7]} 46. Nb3 {[%clk 0:00:23.6]} 46... Kf4 {[%clk
0:00:20.7]} 47. Nd4 {[%clk 0:00:24.2]} 47... Rc8+ {[%clk 0:00:21.4]} 48. Kd3
{[%clk 0:00:24.5]} 48... Ra8 {[%clk 0:00:21.6]} 49. Rf6+ {[%clk 0:00:24.8]}
49... Ke5 {[%clk 0:00:21.7]} 50. Rf5+ {[%clk 0:00:25.4]} 50... Kd6 {[%clk
0:00:22.5]} 51. Rh5 {[%clk 0:00:25.6]} 51... Rg8 {[%clk 0:00:22.2]} 52. Kc4
{[%clk 0:00:25.3]} 52... Rc8+ {[%clk 0:00:21.8]} 53. Kd3 {[%clk 0:00:25.6]}
53... Rg8 {[%clk 0:00:22.7]} 54. Nb5+ {[%clk 0:00:25.8]} 54... Kc6 {[%clk
0:00:22.6]} 55. Kc4 {[%clk 0:00:26]} 55... Rg4+ {[%clk 0:00:23]} 56. Nd4+ {[%clk
0:00:26.3]} 56... Kd6 {[%clk 0:00:23.8]} 57. Ra5 {[%clk 0:00:25.9]} 57... Rg8
{[%clk 0:00:22.4]} 58. Rd5+ {[%clk 0:00:24.7]} 58... Ke7 {[%clk 0:00:22.9]} 59.
Rf5 {[%clk 0:00:23.9]} 59... Ra8 {[%clk 0:00:18.5]} 60. Kc5 {[%clk 0:00:22.7]}
60... Ra5+ {[%clk 0:00:18.5]} 61. Nb5 {[%clk 0:00:22.9]} 61... Ke6 {[%clk
0:00:19]} 62. Rf1 {[%clk 0:00:22.9]} 62... Ra2 {[%clk 0:00:18.5]} 63. Nd4+
{[%clk 0:00:21]} 63... Ke5 {[%clk 0:00:18.2]} 64. Re1+ {[%clk 0:00:20.8]} 64...
Kf4 {[%clk 0:00:18.5]} 65. Kc4 {[%clk 0:00:21.4]} 65... Ra4+ {[%clk 0:00:18.2]}
66. Kc3 {[%clk 0:00:21.5]} 66... Ra3+ {[%clk 0:00:18.5]} 67. Nb3 {[%clk
0:00:21.7]} 67... Ra8 {[%clk 0:00:18.1]} 68. Kc4 {[%clk 0:00:21.9]} 68... Rc8+
{[%clk 0:00:17.5]} 69. Kd3 {[%clk 0:00:22.5]} 69... Ra8 {[%clk 0:00:17.3]} 70.
Re4+ {[%clk 0:00:21]} 70... Kf5 {[%clk 0:00:17.9]} 71. Nd4+ {[%clk 0:00:21.5]}
71... Kf6 {[%clk 0:00:18.7]} 72. Re6+ {[%clk 0:00:22.1]} 72... Kf7 {[%clk
0:00:18.6]} 73. Ke4 {[%clk 0:00:22.6]} 73... Ra5 {[%clk 0:00:18.9]} 74. Rb6
{[%clk 0:00:22.3]} 74... Rg5 {[%clk 0:00:18.6]} 75. Kf4 {[%clk 0:00:22.1]} 75...
Rg1 {[%clk 0:00:18.9]} 76. Nf3 {[%clk 0:00:22.3]} 76... Rf1 {[%clk 0:00:19.3]}
77. Ke4 {[%clk 0:00:22.9]} 77... Ke7 {[%clk 0:00:19.9]} 78. Rh6 {[%clk
0:00:22.3]} 78... Kd7 {[%clk 0:00:19.9]} 79. Nd4 {[%clk 0:00:22.4]} 79... Ra1
{[%clk 0:00:18.8]} 80. Nb3 {[%clk 0:00:21]} 80... Re1+ {[%clk 0:00:18.5]} 81.
Kd5 {[%clk 0:00:21.3]} 81... Rd1+ {[%clk 0:00:18.9]} 82. Nd4 {[%clk 0:00:21.5]}
82... Ke7 {[%clk 0:00:19.6]} 83. Re6+ {[%clk 0:00:21.9]} 83... Kf7 {[%clk
0:00:19.8]} 84. Ra6 {[%clk 0:00:22.5]} 84... Re1 {[%clk 0:00:19]} 85. Nf3 {[%clk
0:00:22.1]} 85... Rb1 {[%clk 0:00:18.2]} 86. Ke5 {[%clk 0:00:21.2]} 86... Rb5+
{[%clk 0:00:17.9]} 87. Kf4 {[%clk 0:00:21.8]} 87... Ke7 {[%clk 0:00:16.9]} 88.
Ne5 {[%clk 0:00:22.2]} 88... Rb1 {[%clk 0:00:17.6]} 89. Nc6+ {[%clk 0:00:21.8]}
89... Kd7 {[%clk 0:00:17.5]} 90. Nd4 {[%clk 0:00:21.8]} 90... Re1 {[%clk
0:00:17.1]} 91. Kf5 {[%clk 0:00:22.1]} 91... Kc7 {[%clk 0:00:16.3]} 92. Ne6+
{[%clk 0:00:22.1]} 92... Kb7 {[%clk 0:00:16.9]} 93. Nc5+ {[%clk 0:00:22.3]}
93... Kc7 {[%clk 0:00:17.6]} 94. Ne4 {[%clk 0:00:23]} 94... Kb7 {[%clk
0:00:17.2]} 1/2-1/2

[Event "Early-Titled-Tuesday-Blitz-April-16-2024"]
[Site "Chess.com"]
[Date "2024.04.16"]
[Round "3"]
[White "Kobalia"]
[Black "marcodobrikov"]
[Result "1-0"]
[WhiteElo "2808"]
[BlackElo "2531"]
[TimeControl "180+1"]
[EndTime "8:30:55 PDT"]
[Termination "Kobalia won by checkmate"]

1. d4 {[%clk 0:03:00.9]} 1... Nf6 {[%clk 0:02:52]} 2. Nf3 {[%clk 0:03:00.7]}
2... d5 {[%clk 0:02:51.7]} 3. Bf4 {[%clk 0:03:00.6]} 3... Bf5 {[%clk 0:02:51.9]}
4. e3 {[%clk 0:02:59.5]} 4... c6 {[%clk 0:02:52.4]} 5. c4 {[%clk 0:02:57.9]}
5... e6 {[%clk 0:02:50.8]} 6. Nc3 {[%clk 0:02:57.2]} 6... h6 {[%clk 0:02:51]} 7.
Qb3 {[%clk 0:02:56.9]} 7... Qb6 {[%clk 0:02:51.6]} 8. c5 {[%clk 0:02:57.1]} 8...
Qxb3 {[%clk 0:02:52.4]} 9. axb3 {[%clk 0:02:57.4]} 9... a6 {[%clk 0:02:53.3]}
10. b4 {[%clk 0:02:57.6]} 10... Be7 {[%clk 0:02:53.3]} 11. b5 {[%clk 0:02:57.9]}
11... cxb5 {[%clk 0:02:53.3]} 12. Nxb5 {[%clk 0:02:43.5]} 12... O-O {[%clk
0:02:48.8]} 13. Nd6 {[%clk 0:02:43.5]} 13... Bxd6 {[%clk 0:02:40.6]} 14. Bxd6
{[%clk 0:02:44.4]} 14... Rc8 {[%clk 0:02:35.9]} 15. Be2 {[%clk 0:02:39]} 15...
Nc6 {[%clk 0:02:34]} 16. Nd2 {[%clk 0:02:36.4]} 16... Nb4 {[%clk 0:02:31.8]} 17.
O-O {[%clk 0:02:35.6]} 17... Ne4 {[%clk 0:02:26.1]} 18. Nxe4 {[%clk 0:02:34.8]}
18... Bxe4 {[%clk 0:02:27]} 19. f3 {[%clk 0:02:33.7]} 19... Bd3 {[%clk
0:02:23.4]} 20. Kf2 {[%clk 0:02:23.9]} 20... Bxe2 {[%clk 0:02:22.7]} 21. Kxe2
{[%clk 0:02:24.8]} 21... a5 {[%clk 0:02:16.3]} 22. Ra4 {[%clk 0:02:22.4]} 22...
Ra6 {[%clk 0:02:16]} 23. Rfa1 {[%clk 0:02:17.4]} 23... Nc6 {[%clk 0:02:16.4]}
24. e4 {[%clk 0:02:08.1]} 24... b5 {[%clk 0:02:10.4]} 25. cxb6 {[%clk
0:01:46.8]} 25... Rxb6 {[%clk 0:02:10.6]} 26. Ba3 {[%clk 0:01:46.7]} 26... Rd8
{[%clk 0:01:56.4]} 27. e5 {[%clk 0:01:40.3]} 27... Rb5 {[%clk 0:01:42.5]} 28.
Rc1 {[%clk 0:01:37.7]} 28... Rc8 {[%clk 0:01:08.7]} 29. Kd2 {[%clk 0:01:35.1]}
29... f6 {[%clk 0:01:04]} 30. f4 {[%clk 0:01:33.6]} 30... Kf7 {[%clk 0:01:02.9]}
31. Rc3 {[%clk 0:01:22.3]} 31... Ke8 {[%clk 0:00:58.9]} 32. exf6 {[%clk
0:01:01.3]} 32... gxf6 {[%clk 0:00:59.1]} 33. Rh3 {[%clk 0:01:01.2]} 33... Kf7
{[%clk 0:00:40.6]} 34. Rxh6 {[%clk 0:01:00.6]} 34... Rg8 {[%clk 0:00:37.3]} 35.
g3 {[%clk 0:01:00.2]} 35... Rg7 {[%clk 0:00:32.4]} 36. Kc2 {[%clk 0:00:52.7]}
36... f5 {[%clk 0:00:28.4]} 37. Bc5 {[%clk 0:00:48.6]} 37... Rg6 {[%clk
0:00:26.2]} 38. Rh7+ {[%clk 0:00:40.4]} 38... Rg7 {[%clk 0:00:26.4]} 39. Rxg7+
{[%clk 0:00:39.7]} 39... Kxg7 {[%clk 0:00:26.9]} 40. Ra1 {[%clk 0:00:39.4]}
40... Kf6 {[%clk 0:00:25.8]} 41. h3 {[%clk 0:00:37.9]} 41... Rb7 {[%clk
0:00:23]} 42. Rg1 {[%clk 0:00:17.9]} 42... Rh7 {[%clk 0:00:21.8]} 43. h4 {[%clk
0:00:18]} 43... Rg7 {[%clk 0:00:19.8]} 44. Kb3 {[%clk 0:00:17.5]} 44... Rb7+
{[%clk 0:00:17.8]} 45. Ka3 {[%clk 0:00:17.6]} 45... Kg6 {[%clk 0:00:16.4]} 46.
b3 {[%clk 0:00:16.3]} 46... Kh5 {[%clk 0:00:16.5]} 47. Re1 {[%clk 0:00:16.2]}
47... Nd8 {[%clk 0:00:14.2]} 48. Ka4 {[%clk 0:00:15.4]} 48... Kg4 {[%clk
0:00:14.5]} 49. Re3 {[%clk 0:00:15.4]} 49... Ra7 {[%clk 0:00:06.2]} 50. Kb5
{[%clk 0:00:14.1]} 50... Ra8 {[%clk 0:00:05.2]} 51. Bb6 {[%clk 0:00:13]} 51...
Nf7 {[%clk 0:00:04.4]} 52. Rxe6 {[%clk 0:00:11.6]} 52... Kxg3 {[%clk 0:00:04.7]}
53. h5 {[%clk 0:00:11.9]} 53... Kxf4 {[%clk 0:00:04.9]} 54. Rf6 {[%clk
0:00:11.4]} 54... Ng5 {[%clk 0:00:04.4]} 55. h6 {[%clk 0:00:09.9]} 55... Ne4
{[%clk 0:00:04.7]} 56. Re6 {[%clk 0:00:09.8]} 56... Nc3+ {[%clk 0:00:02.1]} 57.
Kc6 {[%clk 0:00:09.7]} 57... a4 {[%clk 0:00:02.7]} 58. bxa4 {[%clk 0:00:09.2]}
58... Rxa4 {[%clk 0:00:03.4]} 59. h7 {[%clk 0:00:09.2]} 59... Ra8 {[%clk
0:00:03.9]} 60. Bc7+ {[%clk 0:00:08.5]} 60... Kf3 {[%clk 0:00:03.2]} 61. Be5
{[%clk 0:00:08.6]} 61... f4 {[%clk 0:00:03.3]} 62. Rf6 {[%clk 0:00:08.2]} 62...
Ne2 {[%clk 0:00:03.8]} 63. Rg6 {[%clk 0:00:07.9]} 63... Ra6+ {[%clk 0:00:02.9]}
64. Kxd5 {[%clk 0:00:06.4]} 64... Rxg6 {[%clk 0:00:03.8]} 65. h8=Q {[%clk
0:00:06.8]} 65... Ke3 {[%clk 0:00:03.7]} 66. Qh5 {[%clk 0:00:06]} 66... Rg3
{[%clk 0:00:03.8]} 67. Ke6 {[%clk 0:00:05.1]} 67... Rg2 {[%clk 0:00:03.4]} 68.
d5 {[%clk 0:00:04.5]} 68... f3 {[%clk 0:00:04]} 69. Qh6+ {[%clk 0:00:04.7]}
69... Kf2 {[%clk 0:00:04.2]} 70. d6 {[%clk 0:00:04.2]} 70... Kf1 {[%clk
0:00:04.8]} 71. Qh1+ {[%clk 0:00:04.1]} 71... Kf2 {[%clk 0:00:03.9]} 72. d7
{[%clk 0:00:03.8]} 72... Rg5 {[%clk 0:00:04]} 73. d8=Q {[%clk 0:00:03.3]} 73...
Ng1 {[%clk 0:00:04.7]} 74. Qh2+ {[%clk 0:00:03.2]} 74... Rg2 {[%clk 0:00:04]}
75. Qd2+ {[%clk 0:00:03.3]} 75... Kf1 {[%clk 0:00:04.5]} 76. Qd1+ {[%clk
0:00:03.6]} 76... Kf2 {[%clk 0:00:05.1]} 77. Bd4# {[%clk 0:00:03.8]} 1-0